bitfinex/quotes_ETHUSD_20240810
["timestamp","ask_amount","ask_price","bid_price","bid_amount"]
[1723251978566,3.85403,2594.7,2594.3,0.632461]
[1723251978744,3.85403,2594.7,2594.6,0.0452851]
[1723251978930,3.85285,2595.5,2594.3,0.632461]
[1723251978931,6.85269,2595.6,2594.8,3.85377]
[1723251979133,6.85269,2595.6,2594.3,0.632461]
[1723251979134,3.85269,2595.6,2595.0,3.85347]
[1723251979468,3.85241,2595.8,2595.2,3.8532]
[1723251979674,3.85241,2595.8,2595.2,3.85318]
[1723251979875,3.85241,2595.8,2595.3,3.8531]
[1723251980028,7.7049,2595.8,2595.4,0.38531]
[1723251980228,7.7049,2595.8,2595.1,3.85329]
[1723251980229,3.85241,2595.8,2595.1,3.85329]
[1723251980435,3.8526,2595.7,2595.5,0.04558219]
[1723251980634,3.85267,2595.6,2595.1,3.85329]
[1723251980830,3.85252,2595.7,2595.6,0.04558219]
[1723251981036,3.85241,2595.8,2595.1,3.85329]
[1723251981243,3.85241,2595.8,2595.6,0.04558219]
[1723251981473,3.85262,2595.7,2595.2,0.6708437]
[1723251982237,3.85241,2595.8,2595.2,4.5240237]
[1723251982858,3.85216,2596.0,2595.3,3.85308]
[1723251983071,2.4593,2596.2,2595.3,3.85308]
[1723251983072,3.85247,2595.8,2595.3,0.83772837]
[1723251983975,3.85247,2595.8,2595.3,0.91478051]
[1723251984761,3.85247,2595.8,2595.3,4.76788051]
[1723251984942,3.85247,2595.8,2595.3,3.93015214]
[1723251985289,3.85211,2596.0,2595.4,3.85295]
[1723251985455,3.85211,2596.0,2595.5,3.85281]
[1723251985647,7.70432,2596.0,2595.4,3.93001201]
[1723251985962,7.70432,2596.0,2595.4,4.23827]
[1723251986167,3.85211,2596.0,2595.4,4.23827]
[1723251986378,3.85172,2596.3,2595.5,6.31584]
[1723251986542,3.85158,2596.4,2595.9,3.85221]
[1723251986970,3.85158,2596.4,2596.0,0.04469364]
[1723251987390,7.70316,2596.4,2596.0,0.04469364]
[1723251987548,3.85187,2596.2,2596.0,0.04469364]
[1723251987748,3.85187,2596.2,2595.6,4.522685]
[1723251988057,3.85187,2596.2,2595.7,0.6985785]
[1723251988260,3.85187,2596.2,2595.7,0.74326286]
[1723251988454,3.85158,2596.4,2595.8,7.70457]
[1723251988761,3.85164,2596.3,2595.8,3.85228]
[1723251988962,3.85164,2596.3,2595.9,0.04468436]
[1723251989266,3.85061,2597.0,2596.3,3.8516]
[1723251989475,3.85039,2597.2,2596.6,3.8511]
[1723251989683,3.85039,2597.2,2596.4,3.89478393]
[1723251989985,3.85063,2597.0,2596.5,3.85133]
[1723251990187,7.70082,2597.2,2596.5,8.47718739]
[1723251990482,3.85008,2597.4,2596.8,3.85087]
[1723251990684,3.85008,2597.4,2596.8,7.70167]
[1723251990980,3.84986,2597.5,2597.0,3.85059]
[1723251991184,3.84915,2598.0,2597.0,3.85059]
[1723251991185,3.84969,2597.7,2597.2,3.85021]
[1723251991358,3.84937,2597.9,2597.2,3.8502]
[1723251991564,3.84937,2597.9,2597.3,0.04268994]
[1723251992300,3.849,2598.1,2597.4,6.313]
[1723251992585,3.84935,2597.9,2597.4,2.4631]
[1723251992746,3.8497,2597.6,2597.5,0.04207829]
[1723251993151,3.8497,2597.6,2597.0,2.4631]
[1723251993907,3.85011,2597.4,2597.0,2.4631]
[1723251994264,3.85011,2597.4,2597.1,0.04075262]
[1723251994475,3.85011,2597.4,2596.8,6.85076]
[1723251994677,3.85011,2597.4,2597.2,0.04075262]
[1723251995000,3.85011,2597.4,2596.8,8.167259]
[1723251995186,3.85011,2597.4,2597.3,0.04075262]
[1723251995387,3.85011,2597.4,2596.8,8.167259]
[1723251995696,3.85051,2597.1,2596.9,0.04075262]
[1723251995905,3.85051,2597.1,2596.7,2.4631]
[1723251996071,3.85051,2597.1,2597.0,0.04075262]
[1723251996274,3.85015,2597.3,2596.7,2.4631]
[1723251996598,7.70043,2597.3,2597.0,0.04075262]
[1723251996797,7.70043,2597.3,2596.7,2.4631]
[1723251997107,3.8503,2597.2,2596.7,2.4631]
[1723251997257,3.85015,2597.3,2596.8,0.04075262]
[1723251997458,3.84962,2597.7,2597.0,3.85056]
[1723251997707,3.84921,2598.0,2597.4,3.84989]
[1723251997907,3.84921,2598.0,2597.5,0.384989]
[1723251998089,3.84886,2598.2,2597.5,0.384989]
[1723251998299,3.84859,2598.4,2597.7,3.84954]
[1723251998496,3.84868,2598.3,2597.7,2.4631]
[1723251999008,7.69722,2598.4,2597.8,0.04075262]
[1723251999180,3.84859,2598.4,2597.8,0.04075262]
[1723251999707,6.1505,2598.8,2597.8,4.91043988]
[1723251999924,3.84767,2599.0,2598.1,2.4631]
[1723252000221,3.84767,2599.0,2598.2,4.09498]
[1723252000364,3.84804,2598.8,2598.2,4.09498]
[1723252000560,3.84848,2598.5,2598.2,0.28706262]
[1723252000760,3.84848,2598.5,2598.2,0.04075262]
[1723252001071,3.84863,2598.4,2598.2,0.04075262]
[1723252001272,3.84718,2599.4,2597.6,3.84964]
[1723252001273,3.84868,2598.3,2597.7,2.4173]
[1723252001679,3.84885,2598.2,2597.7,5.4173]
[1723252001894,7.69745,2598.3,2597.7,5.4173]
[1723252002065,3.84868,2598.3,2597.7,5.4173]
[1723252002414,3.84841,2598.5,2597.7,5.4173]
[1723252002415,3.84855,2598.4,2597.8,4.77605]
[1723252002563,3.84841,2598.5,2597.8,0.92669]
[1723252002928,3.84799,2598.8,2597.3,2.4173]
[1723252003127,3.84979,2597.6,2597.3,2.4173]
[1723252003417,3.84972,2597.6,2597.0,3.85052]
[1723252003601,3.84972,2597.6,2597.1,0.626782]
[1723252003768,3.84957,2597.7,2597.1,4.477222]
[1723252003969,3.84972,2597.6,2597.1,0.626782]
[1723252004197,3.84957,2597.7,2597.1,0.626782]
[1723252004511,3.84932,2597.9,2597.2,0.5246465]
[1723252004807,3.84932,2597.9,2597.3,3.85015]
[1723252005395,3.84884,2598.2,2597.6,3.84958]
[1723252005639,3.84878,2598.3,2597.6,3.84958]
[1723252005640,3.84878,2598.3,2597.6,7.69914]
[1723252005800,3.84878,2598.3,2597.7,0.769914]
[1723252006123,3.84908,2598.1,2597.7,0.769914]
[1723252006419,3.84908,2598.1,2597.8,0.03565588]
[1723252006600,3.84908,2598.1,2597.5,3.84976]
[1723252006801,3.84908,2598.1,2597.6,0.03565588]
[1723252007009,3.84937,2597.9,2597.6,0.03565588]
[1723252007312,3.84901,2598.1,2597.4,9.2673]
[1723252007514,3.84901,2598.1,2597.7,0.03565588]
[1723252007714,3.84913,2598.0,2597.5,0.06751167]
[1723252007903,7.69806,2598.1,2597.8,0.03563736]
[1723252008104,3.84827,2598.6,2598.0,3.84901]
[1723252008304,0.44073869,2599.8,2598.1,4.233791]
[1723252008305,7.69609,2598.8,2598.1,4.233791]
[1723252008627,7.69547,2599.0,2598.4,3.8485]
[1723252009108,3.84773,2599.0,2598.5,0.03561883]
[1723252009308,2.3217,2599.3,2598.5,0.03561883]
[1723252009491,3.84768,2599.0,2598.2,2.4173]
[1723252009691,3.84788,2598.9,2598.6,0.03525766]
[1723252009913,3.84788,2598.9,2598.2,2.4173]
[1723252009914,7.69516,2599.1,2598.3,0.06214435]
[1723252010122,3.8477,2599.0,2598.7,0.03525766]
[1723252010326,7.69515,2599.1,2598.5,3.84837]
[1723252010543,3.8477,2599.0,2598.8,0.03525766]
[1723252010697,3.8477,2599.0,2598.4,3.84841]
[1723252010698,3.8477,2599.0,2598.5,3.84834]
[1723252011024,3.8477,2599.0,2598.6,0.035091]
[1723252011386,3.84807,2598.7,2598.6,0.035091]
[1723252011715,3.84879,2598.3,2597.9,2.4173]
[1723252012089,3.84834,2598.6,2598.0,3.84909]
[1723252012289,3.84802,2598.8,2598.2,3.84877]
[1723252012498,3.84788,2598.9,2598.4,3.84851]
[1723252012714,7.69571,2598.9,2598.5,0.384851]
[1723252012915,3.84802,2598.8,2598.2,3.84869]
[1723252013287,6.84723,2599.3,2597.9,2.4173]
[1723252013288,3.84867,2598.3,2597.9,2.4173]
[1723252013489,3.84904,2598.1,2597.6,2.4173]
[1723252013689,2.3217,2598.9,2597.6,2.4173]
[1723252013924,3.8485,2598.5,2597.9,3.84914]
[1723252014223,3.8485,2598.5,2598.0,3.84908]
[1723252014425,3.84814,2598.7,2598.1,0.384908]
[1723252015024,3.84855,2598.4,2598.1,0.384908]
[1723252015229,3.84855,2598.4,2597.8,3.84931]
[1723252015430,3.8483,2598.6,2597.9,3.84917]
[1723252015431,3.84839,2598.5,2597.9,3.84917]
[1723252016325,3.8483,2598.6,2598.0,3.84907]
[1723252016601,3.8483,2598.6,2598.1,0.769824]
[1723252016728,3.84837,2598.5,2598.1,0.769824]
[1723252017522,3.84796,2598.8,2598.1,0.769824]
[1723252017716,3.84796,2598.8,2597.7,3.84945]
[1723252017717,3.84796,2598.8,2597.8,3.84939]
[1723252017922,3.84876,2598.3,2597.7,3.84945]
[1723252018124,3.84887,2598.2,2597.7,3.84945]
[1723252018368,3.8486,2598.4,2597.8,4.476005]
[1723252018937,3.8486,2598.4,2597.8,0.626675]
[1723252019748,3.84898,2598.1,2597.8,0.626675]
[1723252019950,3.84898,2598.1,2597.6,2.4173]
[1723252020264,7.6975,2598.3,2597.7,3.84955]
[1723252020414,3.84935,2597.9,2597.6,2.4173]
[1723252020621,3.84839,2598.5,2597.4,7.49]
[1723252020835,3.84946,2597.8,2597.4,7.49]
[1723252021021,3.84852,2598.4,2597.4,11.33986]
[1723252021022,3.84914,2598.0,2597.4,11.33986]
[1723252021345,3.84914,2598.0,2597.4,7.49]
[1723252021766,3.84941,2597.8,2597.4,7.49]
[1723252021952,7.69837,2598.0,2597.4,7.49]
[1723252022149,7.69836,2598.0,2597.5,2.705]
[1723252022351,3.84891,2598.2,2597.6,2.3355]
[1723252022668,2.3506,2598.8,2597.7,0.51174952]
[1723252022829,3.84885,2598.2,2597.7,0.51174952]
[1723252023170,3.84885,2598.2,2597.7,4.36127952]
[1723252023331,3.84861,2598.4,2597.8,0.7466547]
[1723252023530,3.84861,2598.4,2597.8,4.51906795]
[1723252023531,7.69721,2598.4,2597.8,4.51906795]
[1723252023849,2.3506,2598.8,2597.8,0.66967795]
[1723252024054,3.84883,2598.2,2597.7,0.51174952]
[1723252024418,3.8486,2598.4,2597.7,0.51174952]
[1723252024419,3.84938,2597.9,2597.7,0.51174952]
[1723252024613,3.84938,2597.9,2597.6,2.3355]
[1723252024847,3.84935,2597.9,2597.6,2.3355]
[1723252025360,3.84934,2597.9,2597.6,2.3355]
[1723252026966,6.19858,2598.8,2597.8,3.84933]
[1723252027138,3.8486,2598.4,2597.9,0.384933]
[1723252027338,3.84893,2598.2,2597.9,0.384933]
[1723252027555,7.69784,2598.2,2597.6,6.18514]
[1723252027751,2.3506,2598.8,2597.6,2.3355]
[1723252027967,3.84914,2598.0,2597.7,0.50405]
[1723252028283,3.84941,2597.8,2597.7,0.50405]
[1723252028435,3.84914,2598.0,2597.7,0.50405]
[1723252028636,3.84934,2597.9,2597.7,0.50405]
[1723252029073,3.84914,2598.0,2597.7,0.50405]
[1723252029245,4.08318,2598.7,2597.7,0.50405]
[1723252029246,3.84928,2597.9,2597.7,0.50405]
[1723252029566,3.84928,2597.9,2597.6,2.3355]
[1723252029567,3.84949,2597.8,2597.6,2.3355]
[1723252029739,3.84944,2597.8,2597.6,2.3355]
[1723252030274,7.6984,2598.0,2597.6,2.3355]
[1723252030583,3.84928,2597.9,2597.6,2.56905]
[1723252031060,3.84916,2598.0,2597.6,2.56905]
[1723252031682,3.8489,2598.2,2597.6,2.56905]
[1723252032024,3.84921,2598.0,2597.6,2.56905]
[1723252032227,7.69845,2598.0,2597.6,2.56905]
[1723252032389,3.84921,2598.0,2597.7,0.256905]
[1723252032594,3.8489,2598.2,2597.7,0.256905]
[1723252032806,3.84911,2598.0,2597.7,0.256905]
[1723252032979,3.84916,2598.0,2597.6,2.3355]
[1723252033180,3.84919,2598.0,2597.6,2.3355]
[1723252033622,2.3506,2598.8,2597.6,2.3355]
[1723252033809,3.8489,2598.2,2597.6,6.18511]
[1723252034011,3.8489,2598.2,2597.7,0.618511]
[1723252034828,3.84913,2598.0,2597.7,0.618511]
[1723252035128,2.3506,2598.9,2597.7,3.0]
[1723252035516,3.84897,2598.1,2597.6,5.3355]
[1723252035744,3.84897,2598.1,2597.6,3.254048]
[1723252036047,3.84811,2598.7,2597.8,2.3355]
[1723252036260,3.84861,2598.4,2597.8,6.18483]
[1723252036416,7.69668,2598.6,2597.9,7.69833]
[1723252036634,3.84832,2598.6,2598.0,4.852483]
[1723252036823,3.84799,2598.8,2598.0,4.852483]
[1723252036824,3.84814,2598.7,2598.2,3.84874]
[1723252037010,3.84814,2598.7,2598.2,4.618524]
[1723252037204,3.84799,2598.8,2598.2,4.618524]
[1723252037408,3.84799,2598.8,2598.2,4.618484]
[1723252037722,3.8481,2598.7,2598.2,4.618484]
[1723252037928,3.84786,2598.9,2598.3,6.26098362]
[1723252038241,3.84793,2598.8,2598.3,3.42344676]
[1723252039118,3.84838,2598.5,2597.8,2.3355]
[1723252039328,3.84806,2598.8,2597.8,2.3355]
[1723252039640,3.8486,2598.4,2597.8,10.03413]
[1723252039848,3.84868,2598.3,2597.9,1.058413]
[1723252040227,3.84728,2599.3,2598.4,3.84844]
[1723252040412,0.1,2600.3,2598.8,3.84781]
[1723252040413,3.84704,2599.4,2598.8,3.84781]
[1723252040748,3.84723,2599.3,2598.5,2.4407]
[1723252040951,3.84723,2599.3,2598.1,10.49]
[1723252040952,3.84881,2598.2,2598.1,7.49]
[1723252041121,3.84919,2598.0,2597.5,2.4407]
[1723252041323,3.84942,2597.8,2597.5,2.4407]
[1723252041555,3.84942,2597.8,2597.2,3.8502]
[1723252041556,3.8497,2597.6,2597.2,2.4407]
[1723252043146,3.84997,2597.5,2597.2,2.4407]
[1723252043467,7.70019,2597.4,2596.8,2.4407]
[1723252043625,3.85015,2597.3,2596.9,0.62917]
[1723252044860,3.84959,2597.7,2596.9,0.62917]
[1723252045147,2.3962,2598.1,2596.9,3.85068]
[1723252045359,3.84969,2597.7,2597.0,0.03391705]
[1723252045567,3.84969,2597.7,2597.0,3.96138986]
[1723252045865,3.84921,2598.0,2597.0,0.11091986]
[1723252046014,3.84921,2598.0,2597.4,6.29061]
[1723252046214,3.84905,2598.1,2597.5,3.84984]
[1723252046410,3.84905,2598.1,2597.5,3.88439592]
[1723252046696,3.84917,2598.0,2597.5,3.88439592]
[1723252047212,3.84917,2598.0,2597.5,0.03455592]
[1723252047213,3.84927,2597.9,2597.5,0.03455592]
[1723252047461,3.0,2598.3,2597.5,0.03455592]
[1723252047462,3.84942,2597.8,2597.5,0.03455592]
[1723252047760,3.84942,2597.8,2597.1,3.85037]
[1723252047971,3.84942,2597.8,2597.6,0.03418552]
[1723252048169,3.84942,2597.8,2597.2,3.8502]
[1723252048320,3.84942,2597.8,2597.7,0.03418552]
[1723252048519,3.84942,2597.8,2597.1,7.70071]
[1723252048750,3.84942,2597.8,2597.7,0.03425034]
[1723252048953,3.84942,2597.8,2597.2,4.864421]
[1723252049158,3.84942,2597.8,2597.7,0.03425034]
[1723252049452,7.69896,2597.8,2597.7,0.03425034]
[1723252049652,3.84942,2597.8,2597.2,4.864421]
[1723252049820,3.84942,2597.8,2597.3,0.03425034]
[1723252050036,3.84942,2597.8,2597.2,4.864421]
[1723252050238,3.84942,2597.8,2597.3,3.88441663]
[1723252050644,2.3962,2598.1,2597.3,0.03429663]
[1723252050882,3.85,2597.4,2597.3,0.03429663]
[1723252051033,3.85033,2597.2,2596.7,9.9307]
[1723252051237,3.8496,2597.7,2596.7,9.9307]
[1723252051238,3.85075,2596.9,2596.7,2.4407]
[1723252051435,3.85106,2596.7,2596.4,2.4407]
[1723252051647,3.85106,2596.7,2596.2,7.49]
[1723252052082,3.85106,2596.7,2596.1,6.2925]
[1723252052263,3.85124,2596.6,2596.2,0.62925]
[1723252052590,3.85106,2596.7,2596.2,0.62925]
[1723252052749,2.3962,2597.0,2596.2,0.62925]
[1723252052937,3.85143,2596.5,2596.1,2.4407]
[1723252053137,2.3962,2596.3,2595.3,2.4407]
[1723252053391,2.3962,2596.3,2594.9,2.4407]
[1723252053392,7.70605,2595.4,2594.9,2.4407]
[1723252053674,3.85297,2595.4,2594.9,2.4407]
[1723252053873,3.85297,2595.4,2594.9,0.24407]
[1723252053874,3.85327,2595.2,2594.9,0.24407]
[1723252054075,3.85327,2595.2,2594.6,6.29476]
[1723252054076,3.85327,2595.2,2594.6,2.4407]
[1723252054835,3.85301,2595.4,2594.7,3.85391]
[1723252055087,3.85301,2595.4,2594.7,7.70782]
[1723252055291,3.85242,2595.8,2594.9,3.85363]
[1723252055436,5.343,2596.2,2595.0,0.55]
[1723252055437,3.85182,2596.2,2595.0,0.55]
[1723252055635,3.85182,2596.2,2595.6,3.85257]
[1723252055881,3.85121,2596.6,2595.6,0.385257]
[1723252056084,3.85121,2596.6,2594.9,3.85365]
[1723252056085,3.85077,2596.9,2596.2,3.85177]
[1723252056389,3.85077,2596.9,2596.1,3.85182]
[1723252056390,3.85112,2596.7,2596.1,3.85182]
[1723252056583,3.85112,2596.7,2595.8,2.4407]
[1723252056584,3.8505,2597.1,2596.5,3.85124]
[1723252056952,3.8505,2597.1,2596.6,0.03664808]
[1723252057292,3.85083,2596.9,2596.6,0.03664808]
[1723252057432,3.85083,2596.9,2596.1,3.85181]
[1723252057433,0.385083,2596.9,2596.1,3.85181]
[1723252057637,3.85069,2597.0,2596.4,3.85138]
[1723252058165,3.85032,2597.2,2596.5,3.8873107]
[1723252058490,3.85004,2597.4,2596.6,3.85104]
[1723252058652,3.85004,2597.4,2596.7,0.63277207]
[1723252058860,3.85004,2597.4,2596.8,0.03454378]
[1723252059386,7.69834,2598.0,2597.3,3.85015]
[1723252059549,3.8493,2597.9,2597.4,0.385015]
[1723252059751,3.8493,2597.9,2597.4,0.03424731]
[1723252060976,3.84874,2598.3,2597.4,0.03424731]
[1723252061177,3.84985,2597.5,2597.4,0.03424731]
[1723252061491,3.85004,2597.4,2596.9,2.4407]
[1723252062343,3.8502,2597.3,2596.9,2.4407]
[1723252062549,3.85004,2597.4,2596.8,3.0]
[1723252062895,3.85004,2597.4,2596.6,3.85117]
[1723252062896,3.85038,2597.2,2596.6,3.85117]
[1723252063094,3.85038,2597.2,2596.7,1.019061]
[1723252063400,3.85055,2597.1,2596.7,1.019061]
[1723252063545,3.85038,2597.2,2596.7,1.019061]
[1723252064191,7.70018,2597.4,2596.7,4.870071]
[1723252064391,3.85032,2597.2,2596.8,0.7870071]
[1723252064647,3.85032,2597.2,2596.6,3.0]
[1723252064896,3.85032,2597.2,2596.6,6.85118]
[1723252065302,3.85053,2597.1,2596.6,3.0]
[1723252066096,3.85032,2597.2,2596.6,6.85107]
[1723252066308,3.85032,2597.2,2596.7,5.20392556]
[1723252066609,3.85017,2597.3,2596.7,5.20392556]
[1723252067266,3.84973,2597.6,2596.7,1.35291556]
[1723252067469,3.84973,2597.6,2597.0,3.85049]
[1723252067792,3.84973,2597.6,2597.1,3.85042]
[1723252067966,3.84973,2597.6,2597.1,0.03386756]
[1723252068309,3.84973,2597.6,2596.9,3.85061]
[1723252068491,3.84973,2597.6,2597.2,0.03386756]
[1723252068693,3.84949,2597.8,2596.9,3.85066]
[1723252069012,3.84959,2597.7,2597.3,0.03386756]
[1723252069248,3.84959,2597.7,2597.1,3.85035]
[1723252069416,3.8497,2597.6,2597.1,3.85035]
[1723252069608,3.8497,2597.6,2597.2,0.4840416]
[1723252070409,3.84949,2597.8,2597.2,0.4840416]
[1723252070989,3.84861,2598.4,2597.8,3.84931]
[1723252071183,2.4671,2598.9,2597.8,3.84931]
[1723252071184,3.8485,2598.5,2597.8,3.84931]
[1723252071695,3.8485,2598.5,2597.9,2.4882]
[1723252072175,3.84811,2598.7,2598.1,3.84882]
[1723252072695,3.84811,2598.7,2597.4,14.33996]
[1723252072696,3.84895,2598.2,2597.5,2.4882]
[1723252072896,2.4671,2598.6,2597.4,10.49]
[1723252072897,3.84856,2598.4,2597.4,10.49]
[1723252073152,3.84943,2597.8,2597.4,7.49]
[1723252073309,3.84936,2597.9,2597.3,23.41014]
[1723252073717,3.84936,2597.9,2597.3,19.56]
[1723252074010,3.84936,2597.9,2597.3,26.299964]
[1723252074211,3.84902,2598.1,2597.3,22.449844]
[1723252074429,6.31538,2598.6,2597.6,3.84959]
[1723252074641,3.84906,2598.1,2597.6,3.84959]
[1723252074948,3.84906,2598.1,2597.6,4.674542]
[1723252075320,3.84876,2598.3,2597.7,3.84947]
[1723252075524,3.84876,2598.3,2597.8,3.8494]
[1723252075724,3.84882,2598.2,2597.7,2.4882]
[1723252076052,3.84853,2598.4,2597.8,5.5005412]
[1723252076349,3.84816,2598.7,2597.9,3.84919]
[1723252076548,3.84816,2598.7,2598.0,0.55004212]
[1723252077043,3.84767,2599.0,2597.4,3.0]
[1723252077346,3.84767,2599.0,2597.5,3.84976]
[1723252077347,3.84906,2598.1,2597.5,3.84976]
[1723252077511,7.69816,2598.1,2597.5,3.84976]
[1723252077933,3.84939,2597.9,2597.3,12.868044]
[1723252078242,7.69878,2597.9,2597.3,9.228104]
[1723252078429,3.84944,2597.8,2597.3,9.228104]
[1723252079748,3.84969,2597.7,2597.3,5.378044]
[1723252080337,3.84931,2597.9,2597.3,9.228174]
[1723252080571,7.69866,2597.9,2597.4,1.3078464]
[1723252080769,3.84964,2597.7,2597.1,23.41042]
[1723252081061,3.84964,2597.7,2597.2,3.55]
[1723252081865,3.84964,2597.7,2597.2,3.0]
[1723252082068,2.4671,2598.2,2597.4,3.84986]
[1723252082270,3.8484,2598.5,2597.4,3.84986]
[1723252082271,3.84905,2598.1,2597.4,3.92685007]
[1723252082435,3.84904,2598.1,2597.6,3.84966]
[1723252082634,7.6981,2598.1,2597.6,3.84966]
[1723252082829,7.69861,2597.9,2597.2,10.124122]
[1723252083157,2.4152,2598.6,2597.2,3.0]
[1723252083158,3.84841,2598.5,2597.2,3.0]
[1723252083356,3.84968,2597.7,2597.1,0.07699689]
[1723252083529,3.84968,2597.7,2597.2,3.85028]
[1723252083729,3.84934,2597.9,2597.2,5.083118]
[1723252083926,3.84929,2597.9,2597.4,3.84999]
[1723252084130,3.84929,2597.9,2597.4,3.92689725]
[1723252084330,7.6981,2598.1,2597.5,0.46967598]
[1723252084579,3.84904,2598.1,2597.5,4.31943598]
[1723252084937,7.69809,2598.1,2597.5,4.31943598]
[1723252085243,7.69811,2598.1,2597.5,4.31943598]
[1723252086364,3.84949,2597.8,2597.2,5.083038]
[1723252086566,3.84961,2597.7,2597.3,0.55]
[1723252086879,3.84961,2597.7,2597.2,5.083038]
[1723252086880,3.8498,2597.6,2597.2,1.232838]
[1723252087176,3.84961,2597.7,2597.1,3.0]
[1723252087177,7.69931,2597.7,2597.1,6.85036]
[1723252087337,3.84961,2597.7,2597.1,6.85036]
[1723252087533,3.84979,2597.6,2597.1,5.066915]
[1723252087737,3.85002,2597.4,2597.1,2.066915]
[1723252087976,3.85002,2597.4,2597.0,2.4781]
[1723252087977,3.84976,2597.6,2597.0,2.4781]
[1723252088135,3.84987,2597.5,2597.0,5.4781]
[1723252088332,3.85008,2597.4,2597.1,1.681876]
[1723252088571,3.85008,2597.4,2596.9,7.49]
[1723252088784,3.85038,2597.2,2596.9,7.49]
[1723252089678,3.85008,2597.4,2596.9,11.34065]
[1723252089877,3.85008,2597.4,2597.0,1.134065]
[1723252091431,3.84978,2597.6,2597.0,1.134065]
[1723252091908,3.84994,2597.5,2597.0,1.134065]
[1723252092088,3.84994,2597.5,2596.7,23.41095]
[1723252092089,3.85088,2596.9,2596.3,3.85155]
[1723252092287,3.85088,2596.9,2596.2,6.32979]
[1723252092288,3.85098,2596.8,2596.2,6.32979]
[1723252092488,3.85119,2596.6,2596.3,1.018159]
[1723252093287,3.85163,2596.3,2596.2,2.4781]
[1723252093489,3.85163,2596.3,2595.7,7.70489]
[1723252093490,3.85163,2596.3,2595.9,2.4781]
[1723252093701,3.8515,2596.4,2595.9,3.111154]
[1723252093926,3.85166,2596.3,2595.9,2.4781]
[1723252094530,3.85166,2596.3,2596.0,0.03407143]
[1723252095496,7.70339,2596.3,2596.0,0.03407143]
[1723252095702,3.85109,2596.7,2596.0,0.03407143]
[1723252095703,3.85178,2596.2,2596.0,0.03407143]
[1723252095903,7.70365,2596.2,2595.6,2.4781]
[1723252096133,2.4152,2596.7,2596.1,0.03407143]
[1723252096134,3.85156,2596.4,2596.1,0.03407143]
[1723252096454,3.85178,2596.2,2595.7,3.85251]
[1723252096744,3.85178,2596.2,2595.6,2.4781]
[1723252096745,3.85194,2596.1,2595.6,2.4781]
[1723252096901,3.85194,2596.1,2595.6,3.5349842]
[1723252097420,3.85207,2596.1,2595.6,3.5349842]
[1723252097746,3.85224,2595.9,2595.6,3.5349842]
[1723252097952,3.85224,2595.9,2595.3,9.33113]
[1723252099099,3.85247,2595.8,2595.3,2.4781]
[1723252099407,3.85282,2595.5,2595.0,6.33162]
[1723252099737,3.85255,2595.7,2595.0,6.33155]
[1723252099900,3.85255,2595.7,2595.2,3.85326]
[1723252100102,6.26721,2596.1,2595.0,2.4781]
[1723252100418,0.685111,2596.6,2595.0,2.4781]
[1723252100419,3.85171,2596.3,2595.3,3.85305]
[1723252100733,2.3865,2596.8,2595.5,3.85278]
[1723252100734,3.85142,2596.5,2595.5,3.85278]
[1723252100927,3.85142,2596.5,2596.0,3.85204]
[1723252101131,3.85109,2596.7,2596.1,3.85184]
[1723252101299,3.85109,2596.7,2596.1,4.871474]
[1723252101500,6.85083,2596.9,2596.1,4.94847166]
[1723252101935,3.851,2596.8,2596.2,3.85168]
[1723252102148,3.851,2596.8,2596.1,4.94847166]
[1723252102149,6.85083,2596.9,2596.1,4.871474]
[1723252102343,3.85105,2596.7,2596.1,8.723314]
[1723252102513,3.85105,2596.7,2596.1,4.871474]
[1723252102914,3.85105,2596.7,2596.1,8.723314]
[1723252103215,3.85133,2596.5,2596.0,2.4924]
[1723252103411,3.85105,2596.7,2596.1,3.85181]
[1723252103742,3.85105,2596.7,2596.1,3.8518]
[1723252104102,3.85105,2596.7,2596.0,2.4924]
[1723252104103,3.85144,2596.5,2596.0,2.4924]
[1723252104514,3.85144,2596.5,2596.0,2.52248033]
[1723252104724,3.85144,2596.5,2596.0,3.12986103]
[1723252104926,3.0,2596.9,2596.0,3.12986103]
[1723252105132,3.85129,2596.6,2596.0,6.98183103]
[1723252105330,3.85113,2596.7,2596.0,6.98183103]
[1723252105515,7.70228,2596.7,2596.0,10.83376103]
[1723252105708,7.70228,2596.7,2596.1,1.0833761]
[1723252106041,7.70228,2596.7,2596.1,4.9352961]
[1723252106216,3.85113,2596.7,2596.1,4.9352961]
[1723252106401,3.85113,2596.7,2596.0,6.34433]
[1723252106402,6.85077,2596.9,2596.0,2.4924]
[1723252106601,6.23759,2596.7,2595.7,2.4924]
[1723252106937,7.70372,2596.2,2595.7,2.4924]
[1723252107102,3.85186,2596.2,2595.7,2.4924]
[1723252108031,3.85186,2596.2,2595.7,6.34483]
[1723252108900,7.70373,2596.2,2595.7,6.34483]
[1723252109100,3.8517,2596.3,2595.7,6.34483]
[1723252109336,3.85158,2596.4,2595.7,6.34483]
[1723252109720,3.85165,2596.3,2595.7,6.34483]
[1723252109920,3.85165,2596.3,2595.8,0.07703911]
[1723252110319,3.85165,2596.3,2595.7,6.34483]
[1723252110617,3.85165,2596.3,2595.8,0.07703912]
[1723252111245,3.85165,2596.3,2595.7,7.364585]
[1723252111246,3.85165,2596.3,2595.7,3.85243]
[1723252111875,0.60349726,2597.4,2596.5,3.85124]
[1723252112161,0.60349726,2597.4,2596.3,2.4924]
[1723252112162,3.85084,2596.9,2596.3,2.4924]
[1723252112456,3.85098,2596.8,2596.3,3.126827]
[1723252113070,3.85129,2596.6,2595.9,13.83451]
[1723252113358,3.85105,2596.7,2596.1,3.8519]